bitfinex-derivatives/quotes_BTCF0:USTF0_20250318
["timestamp","ask_amount","ask_price","bid_price","bid_amount"]
[1742298713388,0.8927336,82620.0,82619.0,0.19675943]
[1742298713786,0.8927336,82620.0,82619.0,0.22885943]
[1742298714293,0.7757336,82620.0,82619.0,0.22885943]
[1742298714595,0.8927336,82620.0,82619.0,0.22885943]
[1742298715789,0.8917336,82620.0,82619.0,0.22885943]
[1742298716101,0.8927336,82620.0,82619.0,0.22885943]
[1742298716281,0.8917336,82620.0,82619.0,0.19675943]
[1742298716482,0.8927336,82620.0,82619.0,0.19675943]
[1742298716697,0.8917336,82620.0,82619.0,0.19675943]
[1742298739825,0.8917336,82620.0,82619.0,0.22715943]
[1742298740825,0.8917336,82620.0,82619.0,0.19675943]
[1742298752041,0.7707,82620.0,82619.0,0.19675943]
[1742298752236,0.8917336,82620.0,82619.0,0.19675943]
[1742298752431,0.7707,82620.0,82619.0,0.19675943]
[1742298752836,0.7747336,82620.0,82619.0,0.19675943]
[1742298753045,0.8917336,82620.0,82619.0,0.19675943]
[1742298755339,0.8917336,82620.0,82619.0,0.19775943]
[1742298756647,0.8907336,82620.0,82619.0,0.19775943]
[1742298757147,0.8907336,82620.0,82619.0,0.19675943]
[1742298758646,0.7737336,82620.0,82619.0,0.19675943]
[1742298763438,0.7737336,82620.0,82619.0,0.19775943]
[1742298764354,0.42000979,82620.0,82619.0,0.19875943]
[1742298764731,0.12,82620.0,82619.0,0.19875943]
[1742298764946,0.11981849,82620.0,82619.0,0.19875943]
[1742298765154,0.0311,82630.0,82627.0,0.1210233]
[1742298765343,0.2701815,82628.0,82627.0,0.1210233]
[1742298765544,0.3012815,82628.0,82627.0,0.1868233]
[1742298766740,0.3022815,82628.0,82627.0,0.1868233]
[1742298767753,0.3032815,82628.0,82627.0,0.1868233]
[1742298773856,0.4243034,82628.0,82627.0,0.1210233]
[1742298774353,0.5412634,82628.0,82627.0,0.1210233]
[1742298778550,0.5412634,82628.0,82627.0,0.1828233]
[1742298778750,0.5730634,82628.0,82627.0,0.1828233]
[1742298780867,0.5730634,82628.0,82627.0,0.1210233]
[1742298782667,0.1210233,82627.0,82626.0,4e-05]
[1742298782968,0.1210336,82620.0,82619.0,0.07324013]
[1742298783169,0.5079936,82620.0,82619.0,0.0605158]
[1742298783363,0.1210365,82618.0,82617.0,0.0631]
[1742298783561,0.3910365,82618.0,82617.0,0.19632296]
[1742298784065,0.4546365,82618.0,82617.0,0.19632296]
[1742298784453,0.4526365,82618.0,82617.0,0.19632296]
[1742298786156,0.4536365,82618.0,82617.0,0.19632296]
[1742298786863,0.4526365,82618.0,82617.0,0.19632296]
[1742298787574,0.4536365,82618.0,82617.0,0.19632296]
[1742298788559,0.4546365,82618.0,82617.0,0.19632296]
[1742298789065,0.0605205,82615.0,82613.0,4e-05]
[1742298789261,0.6898024,82614.0,82613.0,0.01230933]
[1742298789465,0.9598024,82614.0,82613.0,0.01230933]
[1742298789866,0.9598024,82614.0,82613.0,0.13335323]
[1742298790067,0.9598024,82614.0,82613.0,0.13331323]
[1742298790268,0.9598024,82614.0,82613.0,0.19921323]
[1742298790772,0.5990024,82614.0,82613.0,0.19921323]
[1742298791959,0.5990024,82614.0,82613.0,0.19821323]
[1742298793171,0.9598024,82614.0,82613.0,0.19821323]
[1742298793369,0.9598024,82614.0,82613.0,0.16541323]
[1742298793779,0.9598024,82614.0,82613.0,0.01226933]
[1742298793959,0.9598024,82614.0,82613.0,0.1210439]
[1742298794270,0.1210439,82613.0,82612.0,4e-05]
[1742298794478,0.4010439,82613.0,82612.0,4e-05]
[1742298794664,0.4618439,82613.0,82612.0,0.01237279]
[1742298795063,0.4618439,82613.0,82612.0,0.13337809]
[1742298796675,0.4618439,82613.0,82612.0,0.16337809]
[1742298797189,0.4618439,82613.0,82612.0,0.19507809]
[1742298797779,0.5788039,82613.0,82612.0,0.19507809]
[1742298797980,0.5808039,82613.0,82612.0,0.19507809]
[1742298798173,0.4638439,82613.0,82612.0,0.19507809]
[1742298798373,0.5788039,82613.0,82612.0,0.19507809]
[1742298798574,0.5808039,82613.0,82612.0,0.19507809]
[1742298799273,0.5818039,82613.0,82612.0,0.19507809]
[1742298801385,0.4648439,82613.0,82612.0,0.19507809]
[1742298801684,0.5818439,82613.0,82612.0,0.19507809]
[1742298805684,0.5516439,82613.0,82612.0,0.19507809]
[1742298805889,0.5820439,82613.0,82612.0,0.19507809]
[1742298810389,0.5210439,82613.0,82612.0,0.19507809]
[1742298810579,0.5200439,82613.0,82612.0,0.19707809]
[1742298811293,0.5815439,82613.0,82612.0,0.19707809]
[1742298812383,0.5795439,82613.0,82612.0,0.19707809]
[1742298812586,0.5795439,82613.0,82612.0,0.19607809]
[1742298813299,0.4625439,82613.0,82612.0,0.19607809]
[1742298815592,0.4927439,82613.0,82612.0,0.19607809]
[1742298815794,0.8535439,82613.0,82612.0,0.13437809]
[1742298815996,0.1200453,82612.0,82611.0,0.12515727]
[1742298816194,0.3900453,82612.0,82611.0,0.12519727]
[1742298816403,0.4520453,82612.0,82611.0,0.12519727]
[1742298817399,0.4530453,82612.0,82611.0,0.00415047]
[1742298817787,0.1210541,82606.0,82605.0,0.01207474]
[1742298817993,0.1815871,82604.0,82603.0,0.1520574]
[1742298818186,0.28,82604.0,82595.0,4e-05]
[1742298818392,0.3608,82597.0,82571.0,0.29058529]
[1742298818591,0.3608,82578.0,82576.0,0.1210966]
[1742298818787,0.1861966,82577.0,82576.0,0.1210966]
[1742298818994,0.6008,82578.0,82577.0,0.1210966]
[1742298818995,0.00176001,82578.0,82577.0,0.1210966]
[1742298819193,0.24,82578.0,82577.0,0.1520966]
[1742298819493,0.24,82578.0,82577.0,0.5636966]
[1742298819898,0.0318,82583.0,82582.0,0.1210893]
[1742298820095,0.2718,82583.0,82582.0,0.1210893]
[1742298820301,0.811545,82583.0,82582.0,0.1210893]
[1742298820494,0.693145,82583.0,82582.0,0.1210893]
[1742298820694,0.8720878,82583.0,82582.0,0.1210893]
[1742298821025,0.3928878,82583.0,82582.0,0.1210893]
[1742298821193,0.8720478,82583.0,82582.0,0.1818893]
[1742298821392,0.9357478,82583.0,82582.0,0.1818893]
[1742298821896,0.9357478,82583.0,82582.0,0.1516893]
[1742298823104,0.9357478,82583.0,82582.0,0.1526893]
[1742298824499,0.9367478,82583.0,82582.0,0.1526893]
[1742298825101,0.9367478,82583.0,82582.0,0.1220893]
[1742298825504,0.1210922,82580.0,82579.0,4e-05]
[1742298825688,0.4009961,82580.0,82579.0,0.1211337]
[1742298825893,0.5836961,82580.0,82579.0,0.1211337]
[1742298826107,0.4648961,82580.0,82579.0,0.1847937]
[1742298828305,0.4648961,82580.0,82579.0,0.0306]
[1742298828520,0.1210952,82578.0,82577.0,0.1211355]
[1742298828698,0.3910952,82578.0,82577.0,0.1211355]
[1742298828898,0.4537952,82578.0,82577.0,0.1211355]
[1742298829602,0.4537952,82578.0,82577.0,4e-05]
[1742298829999,0.4537952,82578.0,82577.0,0.1211366]
[1742298830491,0.4537952,82578.0,82577.0,0.1516366]
[1742298830693,0.4537952,82578.0,82577.0,0.1210966]
[1742298832008,0.4537952,82578.0,82577.0,0.1515966]
[1742298833006,0.4537952,82578.0,82577.0,0.0305]
[1742298833207,0.4537952,82578.0,82577.0,0.1515966]
[1742298834096,0.5725152,82578.0,82577.0,0.1515966]
[1742298837902,0.5725152,82578.0,82576.0,0.060589]
[1742298838104,0.1210966,82577.0,82576.0,4e-05]
[1742298838413,0.3710966,82577.0,82576.0,4e-05]
[1742298838614,0.4034966,82577.0,82576.0,4e-05]
[1742298839104,0.4034966,82577.0,82576.0,0.1210981]
[1742298839300,0.4034966,82577.0,82576.0,0.1835981]
[1742298839501,0.4034966,82577.0,82576.0,0.2162981]
[1742298840304,0.2824,82577.0,82576.0,0.2162981]
[1742298840507,0.25,82577.0,82576.0,0.2162981]
[1742298846020,0.11894161,82586.0,82585.0,0.1210849]
[1742298846207,0.13894161,82586.0,82585.0,1.0009649]
[1742298846513,0.14126501,82586.0,82585.0,0.94448]
[1742298846719,0.14126501,82586.0,82585.0,1.0655649]
[1742298847021,0.20556501,82586.0,82585.0,1.0655649]
[1742298847219,0.20756501,82586.0,82585.0,1.0655649]
[1742298847521,0.20756501,82586.0,82585.0,0.91118]
[1742298847719,0.20956501,82586.0,82585.0,1.0322649]
[1742298848424,0.20956501,82586.0,82585.0,0.87988]
[1742298848716,0.20956501,82586.0,82585.0,1.0009649]
[1742298849523,0.20956501,82586.0,82585.0,0.87988]
[1742298849724,0.20956501,82586.0,82585.0,1.0009649]
[1742298850123,0.20956501,82586.0,82585.0,1.0321649]
[1742298850824,0.20956501,82586.0,82585.0,0.87988]
[1742298851119,0.20956501,82586.0,82585.0,1.0009649]
[1742298851529,0.20956501,82586.0,82585.0,0.87988]
[1742298853619,0.20956501,82586.0,82585.0,1.0009649]
[1742298853823,0.20956501,82586.0,82585.0,1.0652649]
[1742298854418,0.20956501,82586.0,82585.0,0.91128]
[1742298855114,0.20956501,82586.0,82585.0,0.87988]
[1742298857531,0.20956501,82586.0,82585.0,0.91178]
[1742298857727,0.20956501,82586.0,82585.0,0.94468]
[1742298858533,0.20956501,82586.0,82585.0,1.0657649]
[1742298859222,0.32812501,82586.0,82585.0,1.0657649]
[1742298862928,0.20956501,82586.0,82585.0,1.0657649]
[1742298863135,0.05738161,82586.0,82585.0,1.0657649]
[1742298864038,0.08798161,82586.0,82585.0,1.0657649]
[1742298867834,0.05738161,82586.0,82585.0,1.0657649]
[1742298868138,0.11824,82594.0,82593.0,0.1210732]
[1742298868323,0.3015,82594.0,82593.0,0.1832732]
[1742298868837,0.3015,82594.0,82593.0,0.19578062]
[1742298869437,0.3055,82594.0,82593.0,0.19578062]
[1742298869637,0.3095,82594.0,82593.0,0.19578062]
[1742298870132,0.26069169,82594.0,82593.0,0.55658062]
[1742298871431,0.38176339,82594.0,82593.0,0.19578062]
[1742298871638,0.38176339,82594.0,82593.0,0.16398062]
[1742298871940,0.35569169,82594.0,82593.0,0.16398062]
[1742298874043,0.32539169,82594.0,82593.0,0.16398062]
[1742298874946,0.44646339,82594.0,82593.0,0.16398062]
[1742298875128,0.32539169,82594.0,82593.0,0.16398062]
[1742298875332,0.32539169,82594.0,82593.0,0.19658062]
[1742298876947,0.29259169,82594.0,82593.0,0.19658062]
[1742298877849,0.22259169,82594.0,82593.0,0.19658062]
[1742298878042,0.21959169,82594.0,82593.0,0.19658062]
[1742298878237,0.18769169,82594.0,82593.0,0.19658062]
[1742298878646,0.18769169,82594.0,82593.0,0.22868062]
[1742298879152,0.18669169,82594.0,82593.0,0.22968062]
[1742298879850,0.18369169,82594.0,82593.0,0.22968062]
[1742298880649,0.18269169,82594.0,82593.0,0.22968062]
[1742298880842,0.18269169,82594.0,82593.0,0.23368062]
[1742298881444,0.18269169,82594.0,82593.0,0.22968062]
[1742298881645,0.18269169,82594.0,82593.0,0.23368062]
[1742298883749,0.21399169,82594.0,82593.0,0.23368062]
[1742298885854,0.21399169,82594.0,82593.0,0.23568062]
[1742298887148,0.21399169,82594.0,82593.0,0.23168062]
[1742298887345,0.21399169,82594.0,82593.0,0.23468062]
[1742298890458,0.21399169,82594.0,82593.0,0.23068062]
[1742298890647,0.21399169,82594.0,82593.0,0.23468062]
[1742298891857,0.3213,82594.0,82593.0,0.23468062]
[1742298892053,0.3013,82594.0,82593.0,0.23268062]
[1742298892355,0.3013,82594.0,82593.0,0.23668062]
[1742298892745,0.3013,82594.0,82593.0,0.23568062]
[1742298893257,0.0313,82594.0,82593.0,0.23568062]
[1742298893847,0.3113,82594.0,82593.0,0.23168062]
[1742298894161,0.3113,82594.0,82593.0,0.17098062]
[1742298894356,0.3427,82594.0,82593.0,0.17098062]
[1742298895353,0.3427,82594.0,82593.0,0.16798062]
[1742298895657,0.3427,82594.0,82593.0,0.17098062]
[1742298896355,0.3427,82594.0,82593.0,0.53178062]
[1742298896553,0.3427,82594.0,82593.0,0.52778062]
[1742298896758,0.3427,82594.0,82593.0,0.53178062]
[1742298897458,0.3427,82594.0,82593.0,0.53078062]
[1742298898249,0.3427,82594.0,82593.0,0.52778062]
[1742298898559,0.3427,82594.0,82593.0,0.53078062]
[1742298899263,0.3427,82594.0,82593.0,1.40942062]
[1742298899759,0.3732,82594.0,82593.0,1.40942062]
[1742298900063,0.3732,82594.0,82593.0,1.40842062]
[1742298902262,0.3732,82594.0,82593.0,1.40642062]
[1742298902447,0.3732,82594.0,82593.0,1.40942062]
[1742298902956,0.3732,82594.0,82593.0,1.40842062]
[1742298903265,0.3732,82594.0,82593.0,1.44042062]
[1742298904052,0.3732,82594.0,82593.0,1.43942062]
[1742298904248,0.0618,82594.0,82593.0,1.43942062]
[1742298904461,0.0618,82594.0,82593.0,1.46952062]
[1742298904856,0.0618,82594.0,82593.0,1.47052062]
[1742298905462,0.0818,82594.0,82593.0,1.47052062]
[1742298905854,0.0818,82594.0,82593.0,1.47152062]
[1742298906163,0.0618,82594.0,82593.0,1.47152062]
[1742298906358,0.0313,82594.0,82593.0,1.47152062]
[1742298906552,0.0313,82594.0,82593.0,1.58620062]
[1742298906753,0.0313,82594.0,82593.0,1.59020062]
[1742298908157,0.0318,82599.0,82598.0,0.1210658]
[1742298908459,0.00018161,82602.0,82600.0,0.1210629]
[1742298908460,0.0333,82601.0,82600.0,0.1210629]
[1742298908759,0.0333,82601.0,82600.0,0.7129629]
[1742298908963,0.0333,82601.0,82600.0,0.7460629]
[1742298909451,1e-08,82602.0,82601.0,0.1210614]
[1742298909861,1e-08,82602.0,82601.0,0.1851614]
[1742298910451,1e-08,82602.0,82601.0,0.9575614]
[1742298910648,0.2386946,82633.0,82632.0,0.121016]
[1742298910948,0.121016,82632.0,82631.0,0.8796]
[1742298911152,0.1210175,82631.0,82630.0,0.1210183]
[1742298911352,0.4010175,82631.0,82630.0,1.0006183]
[1742298911558,0.4330175,82631.0,82630.0,1.0006183]
[1742298912657,0.4639175,82631.0,82630.0,1.0006183]
[1742298913451,0.4699175,82631.0,82630.0,1.0006183]
[1742298913852,0.5060175,82631.0,82630.0,1.0006183]
[1742298914566,0.5060175,82631.0,82630.0,1.01317997]
[1742298915263,0.5060175,82631.0,82630.0,0.89216167]
[1742298915462,0.5060175,82631.0,82630.0,1.01318057]
[1742298916447,0.5060175,82631.0,82630.0,0.89216167]
[1742298917065,0.5060175,82631.0,82630.0,1.01318057]
[1742298918658,0.5060175,82631.0,82630.0,0.89216167]
[1742298919157,0.5060175,82631.0,82630.0,1.01318057]
[1742298921367,0.5060175,82631.0,82630.0,0.8796]
[1742298922265,0.5060175,82631.0,82630.0,0.81145852]
[1742298922561,0.5060175,82631.0,82630.0,0.74331714]
[1742298926960,0.5060175,82631.0,82630.0,0.86433604]
[1742298927365,0.5060175,82631.0,82630.0,0.89503604]
[1742298928152,0.5060175,82631.0,82630.0,0.77401714]
[1742298928866,0.5060175,82631.0,82630.0,0.89503604]
[1742298929852,0.5060175,82631.0,82630.0,0.92683604]
[1742298931774,0.6233375,82631.0,82630.0,0.92683604]
[1742298935164,0.6231775,82631.0,82630.0,0.92683604]
[1742298938365,0.6231775,82631.0,82630.0,0.8586974]
[1742298941970,0.6131775,82631.0,82630.0,0.8586974]
[1742298942175,0.6161775,82631.0,82630.0,0.8586974]
[1742298943484,0.6141775,82631.0,82630.0,0.8586974]
[1742298943690,0.6171775,82631.0,82630.0,0.8586974]
[1742298944668,0.6181775,82631.0,82630.0,0.8586974]
[1742298945267,0.285,82631.0,82630.0,0.8586974]
[1742298945480,0.283,82631.0,82630.0,0.8586974]
[1742298945667,0.285,82631.0,82630.0,0.8586974]
[1742298946080,0.284,82631.0,82630.0,0.8586974]
[1742298948074,0.2474146,82631.0,82630.0,0.9757374]
[1742298948377,0.004,82631.0,82630.0,0.9757374]
[1742298950181,0.00018161,82639.0,82638.0,0.1210072]
[1742298950486,0.01018161,82639.0,82638.0,0.5988472]
[1742298950984,0.01018161,82639.0,82638.0,0.6624472]
[1742298951485,0.00418161,82639.0,82638.0,0.6624472]
[1742298951976,0.00818161,82639.0,82638.0,0.6624472]
[1742298955692,0.02818161,82639.0,82638.0,0.6624472]
[1742298956891,0.02818161,82639.0,82638.0,0.5454072]
[1742298961295,0.06018161,82639.0,82638.0,0.5454072]
[1742298961994,0.18118741,82639.0,82638.0,0.5143072]
[1742298962191,0.18118741,82639.0,82638.0,0.1535072]
[1742298962391,0.21148741,82639.0,82638.0,0.1535072]
[1742298962998,0.21148741,82639.0,82638.0,0.1210072]
[1742298963300,0.21148741,82639.0,82638.0,0.1535072]
[1742298967115,0.21148741,82639.0,82638.0,0.1210072]
[1742298967308,0.57228741,82639.0,82638.0,0.1210072]
[1742298969813,0.57228741,82639.0,82638.0,0.1541072]
[1742298971824,0.57228741,82639.0,82638.0,0.1210072]
[1742298973118,0.21148741,82639.0,82638.0,0.1210072]
[1742298973421,0.21148741,82639.0,82638.0,0.1520072]
[1742298974025,0.21148741,82639.0,82638.0,0.1844072]
[1742298974718,0.20748161,82639.0,82638.0,0.1844072]
[1742298975024,0.32848741,82639.0,82638.0,0.1844072]
[1742298975719,0.32848741,82639.0,82638.0,0.1520072]
[1742298976521,0.20748161,82639.0,82638.0,0.1520072]
[1742298976722,0.20748161,82639.0,82638.0,0.1844072]
[1742298976932,0.09048161,82639.0,82638.0,0.1844072]
[1742298983631,0.06018161,82639.0,82638.0,0.1844072]
[1742298985529,0.02818161,82639.0,82638.0,0.1844072]
[1742298987432,0.01818161,82639.0,82638.0,0.1844072]
[1742298988220,0.00818161,82639.0,82638.0,0.1844072]
[1742298989732,0.02818161,82639.0,82638.0,0.1844072]
[1742298989934,0.02618161,82639.0,82638.0,0.1844072]
[1742298991738,0.02218161,82639.0,82638.0,0.1844072]
[1742298991938,0.02618161,82639.0,82638.0,0.1844072]
[1742298994428,0.00618161,82639.0,82638.0,0.1844072]
[1742298995035,0.02618161,82639.0,82638.0,0.1844072]
[1742298995237,0.02318161,82639.0,82638.0,0.1844072]
[1742298996040,0.02118161,82639.0,82638.0,0.1844072]
[1742298996235,1e-08,82639.0,82638.0,0.1844072]
[1742298996539,0.3608,82654.0,82653.0,0.1209853]
[1742298996841,0.6108,82654.0,82653.0,1.0002253]
[1742298997229,0.6108,82654.0,82653.0,1.0619253]
[1742298998421,0.251,82654.0,82653.0,1.0619253]
[1742298998822,0.0629,82659.0,82653.0,0.94094]
[1742298999032,0.0304,82659.0,82658.0,0.120978]
[1742298999244,0.0304,82659.0,82658.0,0.13291287]
[1742298999528,0.0304,82659.0,82658.0,0.22551287]
[1742299000130,0.0504,82659.0,82658.0,0.22851287]
[1742299000327,0.0504,82659.0,82658.0,0.23151287]
[1742299000533,0.0304,82659.0,82658.0,0.23151287]
[1742299001739,0.0001815,82662.0,82661.0,0.1209736]
[1742299002039,0.0001815,82662.0,82661.0,0.4817736]
[1742299002238,0.0001815,82662.0,82661.0,0.5120736]
[1742299002839,0.0001815,82662.0,82661.0,0.5140736]
[1742299003046,0.0001815,82662.0,82661.0,0.5469736]
[1742299003538,0.0001815,82662.0,82661.0,0.5499736]
[1742299006043,0.6409815,82662.0,82661.0,0.005]
[1742299006244,0.1209955,82646.0,82633.0,0.87904]
[1742299006436,0.1210131,82634.0,82633.0,0.87904]
[1742299006645,0.8488131,82634.0,82633.0,0.89114684]
[1742299007039,0.8488131,82634.0,82615.0,0.0309]
[1742299007040,0.0575106,82629.0,82615.0,0.0309]
[1742299007339,0.1210378,82618.0,82617.0,0.1210355]
[1742299007535,0.117,82623.0,82622.0,0.1210307]
[1742299007733,0.27,82623.0,82622.0,0.1210307]
[1742299007930,0.3910292,82623.0,82622.0,0.1210307]
[1742299008134,0.1210365,82619.0,82617.0,0.01242107]
[1742299008336,0.0918189,82618.0,82615.0,0.9727598]
[1742299008546,0.3218189,82618.0,82617.0,0.121038]
[1742299008732,0.6816189,82618.0,82617.0,0.121038]
[1742299008937,0.1190395,82617.0,82616.0,0.1210787]
[1742299009149,0.3990395,82617.0,82616.0,0.1210787]
[1742299009443,0.3940395,82617.0,82616.0,0.1210787]
[1742299009847,0.3880395,82617.0,82616.0,0.1210787]
[1742299010044,0.3830395,82617.0,82616.0,0.1210387]
[1742299011149,0.3830395,82617.0,82616.0,0.1270387]
[1742299011751,0.3830395,82617.0,82616.0,0.1652387]
[1742299012047,0.4156395,82617.0,82616.0,0.1652387]
[1742299012246,0.4156395,82617.0,82616.0,0.1969387]
[1742299012443,0.3126,82617.0,82616.0,0.1969387]
[1742299012649,0.281,82617.0,82616.0,0.1909387]
[1742299013047,0.283,82617.0,82616.0,0.1859387]
[1742299015152,0.283,82617.0,82616.0,0.19490556]
[1742299017151,0.003,82617.0,82616.0,0.19490556]
[1742299018651,0.001,82617.0,82616.0,0.19890556]
[1742299019653,0.0309,82629.0,82628.0,0.1210219]
[1742299019861,0.3433,82629.0,82628.0,0.1210219]
[1742299020048,0.3433,82629.0,82628.0,0.1833219]
[1742299021747,0.3109,82629.0,82628.0,0.1833219]
[1742299022054,0.3109,82629.0,82628.0,0.1843219]
[1742299022856,0.3109,82629.0,82628.0,0.1833219]
[1742299023057,0.3109,82629.0,82628.0,0.1863219]
[1742299023644,0.3109,82629.0,82628.0,0.1853219]
[1742299024958,0.3109,82629.0,82628.0,0.1843219]
[1742299026554,0.3109,82629.0,82628.0,0.1833219]
[1742299026759,0.3109,82629.0,82628.0,0.1843219]
[1742299027749,0.3109,82629.0,82628.0,1.0636019]
[1742299028648,0.28,82629.0,82628.0,1.0636019]
[1742299028848,0.28,82629.0,82628.0,1.4752019]
[1742299028849,0.2317148,82629.0,82628.0,1.4752019]
[1742299029166,0.4817867,82652.0,82651.0,0.1209882]
[1742299029354,0.7517867,82652.0,82651.0,0.1209882]
[1742299029968,0.7517867,82652.0,82651.0,0.13337947]
[1742299030263,0.7818867,82652.0,82651.0,0.13337947]
[1742299030467,0.8144867,82652.0,82651.0,0.13337947]
[1742299031550,0.8234867,82652.0,82651.0,0.13437947]
[1742299032068,0.7025,82652.0,82651.0,0.13437947]
[1742299032262,0.7025,82652.0,82651.0,0.16597947]
[1742299032869,0.7025,82652.0,82651.0,0.19737947]
[1742299033257,0.7025,82652.0,82651.0,0.13437947]
[1742299033666,0.7025,82652.0,82651.0,1.01357947]
[1742299033865,0.8234867,82652.0,82651.0,1.01357947]
[1742299034165,0.7025,82652.0,82651.0,1.01357947]
[1742299034569,0.7025,82652.0,82651.0,1.04577947]
[1742299036163,0.7025,82652.0,82651.0,1.07857947]
[1742299037467,0.3417,82652.0,82651.0,1.07857947]
[1742299038062,0.2176172,82652.0,82651.0,1.07857947]
[1742299038362,0.009,82652.0,82651.0,1.07857947]
[1742299038565,0.009,82652.0,82651.0,1.11127947]
[1742299038969,1e-07,82652.0,82651.0,1.11027947]
[1742299039172,0.0324,82659.0,82658.0,0.120978]
[1742299039361,0.0524,82659.0,82658.0,0.237978]
[1742299039775,0.084,82659.0,82658.0,0.237978]
[1742299040082,0.084,82659.0,82658.0,0.303778]
[1742299041166,0.084,82659.0,82658.0,0.31272047]
[1742299041363,0.084,82659.0,82658.0,0.31472047]
[1742299042160,0.084,82659.0,82658.0,0.31672047]
[1742299042362,0.0524,82659.0,82658.0,0.31672047]
[1742299042665,0.0324,82659.0,82658.0,0.31672047]
[1742299042868,0.0001815,82660.0,82659.0,0.1209765]
[1742299043257,0.0001815,82660.0,82659.0,0.1858765]
[1742299044669,0.3608,82679.0,82676.0,0.1209516]
[1742299044976,0.3608,82679.0,82676.0,1.1169516]
[1742299044977,0.38709011,82677.0,82676.0,1.1169516]
[1742299045473,0.38709011,82677.0,82676.0,1.1493516]
[1742299045661,0.74789011,82677.0,82676.0,1.1493516]
[1742299045867,0.38709011,82677.0,82676.0,1.1493516]
[1742299046165,0.41879011,82677.0,82676.0,1.1810516]
[1742299047378,0.32497611,82677.0,82676.0,1.1810516]
[1742299048373,0.08787588,82677.0,82676.0,1.1810516]
[1742299050262,0.02241378,82677.0,82676.0,1.1810516]
[1742299050463,0.0326,82688.0,82687.0,0.1209355]
[1742299050668,0.0936,82688.0,82687.0,0.5986955]
[1742299050876,0.0309,82696.0,82695.0,0.1209238]
[1742299051078,0.1345,82696.0,82695.0,0.13077292]
[1742299051281,0.1345,82696.0,82695.0,0.24773292]
[1742299051979,0.071,82696.0,82695.0,0.24773292]
[1742299052184,0.1,82700.0,82699.0,0.120918]
[1742299052478,0.00018139,82704.0,82702.0,0.1209136]
[1742299052779,0.01018139,82704.0,82703.0,0.2378721]
[1742299054776,0.01118139,82704.0,82703.0,0.2378721]
[1742299055583,0.01118139,82704.0,82703.0,0.1209121]
[1742299055882,0.1209165,82700.0,82699.0,0.87888]
[1742299056075,0.1209165,82700.0,82699.0,0.999798]
[1742299056076,0.3709165,82700.0,82699.0,0.999798]
[1742299056276,0.4328165,82700.0,82699.0,0.999798]
[1742299057165,0.4338165,82700.0,82699.0,0.87888]
[1742299057370,0.1813829,82697.0,82696.0,0.1209211]
[1742299057565,0.8021829,82697.0,82696.0,0.1209211]
[1742299058969,0.80229136,82697.0,82696.0,0.1209211]
[1742299059882,0.62090846,82697.0,82696.0,0.1209211]
[1742299060378,0.71700846,82697.0,82696.0,0.1209211]
[1742299060971,0.83792936,82697.0,82696.0,0.1209211]
[1742299061172,0.1209224,82696.0,82695.0,4e-05]
[1742299061368,0.4135224,82696.0,82695.0,4e-05]
[1742299061574,0.0604634,82693.0,82684.0,0.87864]
[1742299061773,0.1209516,82676.0,82667.0,0.00929673]
[1742299061974,0.6108,82676.0,82673.0,0.87864]
[1742299062172,0.1209545,82674.0,82673.0,1.0600703]
[1742299062380,0.3709545,82674.0,82673.0,1.0601103]
[1742299062582,0.4335545,82674.0,82673.0,1.0601103]
[1742299063083,0.4335545,82674.0,82673.0,1.0631103]
[1742299064786,0.4335545,82674.0,82673.0,1.0671103]
[1742299066377,0.4335545,82674.0,82673.0,1.0641103]
[1742299067382,0.4335545,82674.0,82673.0,1.0601103]
[1742299067572,0.4335545,82674.0,82673.0,1.0641103]
[1742299068284,0.4345545,82674.0,82673.0,1.0601103]
[1742299073790,0.4345545,82674.0,82673.0,1.0918103]
[1742299074578,0.4345545,82674.0,82673.0,1.1244103]
[1742299077085,0.4345545,82674.0,82673.0,1.0918103]
[1742299078892,0.4345545,82674.0,82673.0,1.1223103]
[1742299080583,0.4345545,82674.0,82673.0,1.0601103]
[1742299080989,0.4345545,82674.0,82673.0,1.0901103]
[1742299081188,0.251,82674.0,82673.0,1.1231103]
[1742299081997,0.3141,82674.0,82673.0,1.1231103]
[1742299083996,0.3131,82674.0,82673.0,1.1251103]
[1742299084683,0.2821,82674.0,82673.0,1.1251103]
[1742299084882,0.2821,82674.0,82673.0,1.1241103]
[1742299086782,0.25,82674.0,82673.0,1.1241103]
[1742299088390,0.25,82674.0,82673.0,1.1261103]
[1742299088795,0.25,82674.0,82673.0,1.1281103]
[1742299089499,0.25,82674.0,82673.0,1.1261103]
[1742299089796,0.25,82674.0,82673.0,1.1281103]
[1742299091197,0.25,82674.0,82673.0,1.1261103]
[1742299091399,0.25,82674.0,82673.0,1.1281103]
[1742299091786,0.25,82674.0,82673.0,1.1261103]
[1742299091986,0.25,82674.0,82673.0,1.1281103]
[1742299092186,0.03228139,82682.0,82681.0,0.1209443]
[1742299092390,0.30228139,82682.0,82681.0,0.1209443]
[1742299092587,0.42322419,82682.0,82681.0,0.1538443]
[1742299093088,0.42322419,82682.0,82681.0,0.1850443]
[1742299093294,0.30228139,82682.0,82681.0,0.1850443]
[1742299093494,0.33238139,82682.0,82681.0,0.1850443]
[1742299094912,0.33338139,82682.0,82681.0,0.1850443]
[1742299096189,0.33238139,82682.0,82681.0,0.1850443]
[1742299097898,0.33238139,82682.0,82681.0,1.0638443]
[1742299098096,0.33338139,82682.0,82681.0,1.0638443]
[1742299098705,0.24074859,82682.0,82681.0,1.0638443]
[1742299098908,0.24174859,82682.0,82681.0,1.0947443]
[1742299100098,1e-07,82682.0,82681.0,1.0947443]
[1742299100890,0.0301,82687.0,82686.0,0.120937]
[1742299101091,0.0401,82687.0,82686.0,0.120937]
[1742299101302,0.0401,82687.0,82686.0,0.185237]
[1742299101703,0.0715,82687.0,82686.0,0.185237]
[1742299102702,0.0725,82687.0,82686.0,0.185237]
[1742299103295,0.0725,82687.0,82686.0,0.186237]
[1742299104997,0.0715,82687.0,82686.0,0.186237]
[1742299105303,0.0715,82687.0,82686.0,0.188237]
[1742299105491,0.01,82687.0,82686.0,0.188237]
[1742299105893,0.01,82687.0,82686.0,0.186237]
[1742299106101,0.01,82687.0,82686.0,0.187237]
[1742299106303,0.0725,82687.0,82686.0,0.187237]
[1742299107703,0.1934355,82687.0,82686.0,0.187237]
[1742299108005,0.0725,82687.0,82686.0,0.122937]
[1742299108203,0.18938,82687.0,82686.0,0.122937]
[1742299108505,0.3103155,82687.0,82686.0,0.122937]
[1742299109008,0.3103155,82687.0,82686.0,0.121937]
[1742299109508,0.3103155,82687.0,82686.0,0.120937]
[1742299110005,0.3103155,82687.0,82682.0,0.1209421]
[1742299110006,0.1814135,82683.0,82682.0,0.1209421]
[1742299110194,0.4514135,82683.0,82682.0,0.1209421]
[1742299110698,0.5150135,82683.0,82682.0,0.1209421]